bitfinex-derivatives/quotes_SOLF0:USTF0_20241229
["timestamp","ask_amount","ask_price","bid_price","bid_amount"]
[1735484013480,2.5739,194.58,194.53,2.5745]
[1735484013778,12.86140228,194.57,194.53,2.5745]
[1735484014273,15.43540228,194.57,194.53,2.5745]
[1735484014466,12.86140228,194.57,194.5,3.5]
[1735484015175,12.86140228,194.57,194.53,2.5745]
[1735484015474,12.86140228,194.57,194.5,3.5]
[1735484015668,2.5741,194.56,194.5,3.5]
[1735484016477,12.86140228,194.57,194.5,3.5]
[1735484016771,2.5744,194.54,194.5,3.5]
[1735484016967,12.86140228,194.57,194.5,3.5]
[1735484017675,2.5745,194.54,194.5,3.5]
[1735484017976,12.86140228,194.54,194.5,3.5]
[1735484018378,2.5746,194.53,194.5,3.5]
[1735484018571,2.5746,194.53,194.48,2.5751]
[1735484018772,12.86140228,194.54,194.48,6.0751]
[1735484019073,12.86140228,194.54,194.46,1.5574]
[1735484019276,2.5748,194.51,194.47,6.0753]
[1735484019576,2.5748,194.51,194.48,3.5]
[1735484019967,2.5746,194.52,194.48,6.075]
[1735484020778,2.5746,194.53,194.48,3.5]
[1735484020979,12.86140228,194.54,194.48,3.5]
[1735484021773,2.5747,194.52,194.48,3.5]
[1735484021969,1.538,194.59,194.39,14.37860228]
[1735484021970,12.86140228,194.51,194.39,14.37860228]
[1735484022171,12.86140228,194.51,194.42,3.5]
[1735484022673,2.5749,194.5,194.42,3.5]
[1735484022978,12.86140228,194.51,194.42,3.5]
[1735484023676,15.43620228,194.51,194.42,3.5]
[1735484024577,15.43620228,194.51,194.45,2.5754]
[1735484024878,12.86140228,194.48,194.45,3.5]
[1735484025077,12.86140228,194.48,194.39,1.5172]
[1735484025277,12.86140228,194.48,194.4,6.0761]
[1735484025575,2.5754,194.46,194.4,2.5761]
[1735484025781,12.86140228,194.45,194.39,3.5]
[1735484025975,12.86140228,194.42,194.37,7.0784651]
[1735484026576,12.86140228,194.42,194.36,12.87387]
[1735484026974,12.86140228,194.39,194.36,12.87387]
[1735484027586,2.5766,194.38,194.36,12.87387]
[1735484027986,12.86140228,194.38,194.36,12.87387]
[1735484029086,12.86140228,194.41,194.36,12.87387]
[1735484029984,12.86140228,194.41,194.37,2.5765]
[1735484030286,12.86140228,194.41,194.36,12.87387]
[1735484031084,15.43750228,194.41,194.36,12.87387]
[1735484031285,12.86140228,194.41,194.36,12.87387]
[1735484031586,15.43750228,194.41,194.36,15.45047]
[1735484031781,12.86140228,194.41,194.36,12.87387]
[1735484032379,12.86140228,194.41,194.37,2.5766]
[1735484033881,12.86140228,194.41,194.38,2.5765]
[1735484034076,12.86140228,194.44,194.38,2.5765]
[1735484034283,12.86140228,194.44,194.36,12.87387]
[1735484034483,12.86140228,194.41,194.37,3.44]
[1735484034684,12.86140228,194.38,194.36,12.87387]
[1735484036087,2.5766,194.37,194.36,12.87387]
[1735484036287,12.86140228,194.38,194.36,12.87387]
[1735484037485,2.5766,194.37,194.36,12.87387]
[1735484037687,12.86140228,194.38,194.36,12.87387]
[1735484037987,12.86140228,194.38,194.36,15.45057]
[1735484038289,12.86140228,194.38,194.36,12.87387]
[1735484038483,2.5766,194.37,194.36,12.87387]
[1735484040184,7.8164,194.47,194.36,12.87387]
[1735484040390,12.86140228,194.38,194.36,12.87387]
[1735484040786,15.43800228,194.38,194.36,12.87387]
[1735484040980,12.86140228,194.38,194.36,12.87387]
[1735484041386,2.5766,194.37,194.36,12.87387]
[1735484046486,12.86140228,194.38,194.36,12.87387]
[1735484046689,2.5766,194.37,194.36,12.87387]
[1735484048097,2.5772,194.33,194.3,3.44]
[1735484048294,2.5772,194.33,194.29,3.44]
[1735484048495,12.86140228,194.34,194.26,56.118]
[1735484048697,12.86140228,194.34,194.27,3.44]
[1735484049094,12.86140228,194.34,194.26,6.018]
[1735484049495,2.5773,194.32,194.26,6.018]
[1735484049697,12.86140228,194.34,194.26,6.018]
[1735484050000,12.86140228,194.34,194.26,3.44]
[1735484050195,2.5775,194.31,194.27,2.5779]
[1735484050397,12.86140228,194.34,194.26,3.44]
[1735484050597,15.43850228,194.34,194.3,2.5775]
[1735484051101,12.86140228,194.34,194.26,3.44]
[1735484051293,2.5776,194.3,194.26,6.018]
[1735484051492,12.86140228,194.34,194.26,3.44]
[1735484051697,2.5773,194.32,194.28,2.5778]
[1735484051999,15.43870228,194.32,194.28,2.5778]
[1735484052798,2.5774,194.31,194.28,2.5778]
[1735484053198,12.86140228,194.36,194.27,3.44]
[1735484053400,2.577,194.35,194.27,3.44]
[1735484054305,12.86140228,194.36,194.32,2.5772]
[1735484054495,12.86140228,194.36,194.33,3.44]
[1735484054702,12.86140228,194.36,194.31,3.44]
[1735484055002,12.86140228,194.37,194.31,3.44]
[1735484058402,12.86140228,194.32,194.26,2.578]
[1735484058604,12.86140228,194.32,194.23,5.001]
[1735484059112,12.86140228,194.29,194.25,1.6214]
[1735484059315,12.86140228,194.29,194.23,1.561]
[1735484059513,12.86140228,194.26,194.2,4.9918]
[1735484059917,12.86140228,194.26,194.2,1.5518]
[1735484060513,12.86140228,194.26,194.2,4.1307]
[1735484062416,7.82713342,194.37,194.2,1.5518]
[1735484062622,12.86140228,194.31,194.2,1.5518]
[1735484063420,12.86140228,194.31,194.25,2.5782]
[1735484064113,12.86140228,194.31,194.26,2.578]
[1735484064312,12.86140228,194.31,194.25,3.44]
[1735484065018,12.86140228,194.31,194.25,6.0181]
[1735484065419,12.86140228,194.31,194.25,3.44]
[1735484066124,3.44,194.37,194.26,2.578]
[1735484066328,12.86140228,194.35,194.25,3.44]
[1735484067419,12.86140228,194.35,194.28,2.5778]
[1735484068019,1.2763,194.39,194.25,3.44]
[1735484068329,12.86140228,194.37,194.26,1.4953]
[1735484068519,12.86140228,194.37,194.27,1.5144]
[1735484068727,12.86140228,194.37,194.31,2.5773]
[1735484069727,12.86140228,194.37,194.32,2.5772]
[1735484070025,12.86140228,194.37,194.28,1.5244]
[1735484071127,12.86140228,194.37,194.33,2.5771]
[1735484071922,12.86140228,194.4,194.32,3.44]
[1735484072721,12.86140228,194.4,194.37,2.5765]
[1735484072927,12.86140228,194.43,194.32,3.44]
[1735484073124,12.86140228,194.46,194.33,12.86140228]
[1735484073532,12.86140228,194.46,194.36,12.86140228]
[1735484073728,12.86140228,194.46,194.37,3.1005]
[1735484073920,12.86140228,194.46,194.38,3.44]
[1735484074425,12.86140228,194.46,194.43,2.5757]
[1735484074624,12.86140228,194.46,194.38,3.44]
[1735484074929,15.43720228,194.43,194.38,3.44]
[1735484075126,15.43720228,194.43,194.37,1.5529]
[1735484075127,12.86140228,194.43,194.37,1.5529]
[1735484076029,15.43720228,194.43,194.37,4.1294]
[1735484078531,2.5758,194.43,194.37,4.1294]
[1735484078738,12.86140228,194.42,194.38,2.5764]
[1735484079348,12.86140228,194.42,194.39,2.5763]
[1735484079949,12.86140228,194.42,194.41,2.5761]
[1735484080440,12.86140228,194.42,194.37,4.9929]
[1735484081547,12.86140228,194.42,194.37,3.44]
[1735484081853,12.86140228,194.39,194.32,3.44]
[1735484082348,12.86140228,194.36,194.29,1.5904]
[1735484082546,12.86140228,194.36,194.29,5.0304]
[1735484083043,12.86140228,194.36,194.27,3.44]
[1735484084950,2.9716,194.43,194.27,3.44]
[1735484085143,12.86140228,194.39,194.27,3.44]
[1735484086147,12.86140228,194.42,194.29,12.86140228]
[1735484086544,12.86140228,194.42,194.38,2.5765]
[1735484086840,7.87606042,194.48,194.38,2.5765]
[1735484087046,2.5759,194.43,194.38,2.5765]
[1735484087348,12.86140228,194.44,194.36,3.44]
[1735484087943,12.86140228,194.44,194.39,2.5762]
[1735484088250,12.86140228,194.44,194.36,3.44]
[1735484088845,15.43710228,194.44,194.39,2.5763]
[1735484089250,12.86140228,194.44,194.36,3.44]
[1735484089743,12.86140228,194.41,194.37,2.5765]
[1735484090044,12.86140228,194.38,194.31,3.44]
[1735484090342,12.86140228,194.35,194.31,2.5773]
[1735484090739,15.43830228,194.35,194.3,2.5775]
[1735484090939,12.86140228,194.35,194.26,4.6228]
[1735484091148,12.86140228,194.35,194.27,3.44]
[1735484091548,12.86140228,194.32,194.27,3.44]
[1735484091958,12.86140228,194.32,194.29,2.5777]
[1735484093450,12.86140228,194.32,194.27,3.44]
[1735484093749,12.86140228,194.32,194.28,2.5778]
[1735484096051,15.43870228,194.32,194.27,6.0179]
[1735484096243,15.43870228,194.32,194.27,3.44]
[1735484096446,12.86140228,194.32,194.27,3.44]
[1735484098349,15.43880228,194.32,194.27,6.0179]
[1735484098545,12.86140228,194.32,194.27,3.44]
[1735484099542,15.43870228,194.32,194.27,6.0179]
[1735484100242,3.42,194.39,194.21,3.0066]
[1735484100445,12.86140228,194.3,194.24,3.42]
[1735484100951,12.86140228,194.3,194.26,2.578]
[1735484101947,12.86140228,194.3,194.17,14.42200228]
[1735484102150,12.86140228,194.27,194.17,1.5606]
[1735484102349,12.86140228,194.27,194.18,3.42]
[1735484102745,2.5782,194.26,194.21,2.5786]
[1735484103853,12.86140228,194.27,194.23,2.5783]
[1735484104052,12.86140228,194.27,194.2,3.42]
[1735484104558,12.86140228,194.27,194.24,2.5782]
[1735484104955,12.86140228,194.27,194.25,2.5782]
[1735484105955,12.86140228,194.27,194.2,3.42]
[1735484106455,12.86140228,194.24,194.2,3.42]
[1735484106858,12.86140228,194.24,194.19,3.42]
[1735484107248,12.86140228,194.24,194.17,1.5606]
[1735484107453,12.86140228,194.21,194.15,53.58]
[1735484107653,12.86140228,194.21,194.16,3.42]
[1735484108052,15.44020228,194.21,194.16,5.9993]
[1735484109152,12.86140228,194.21,194.16,3.42]
[1735484109359,12.86140228,194.21,194.17,2.5792]
[1735484111062,12.86140228,194.18,194.1,1.593]
[1735484111258,12.86140228,194.18,194.05,12.86140228]
[1735484111259,12.86140228,194.18,194.04,3.0796]
[1735484111454,12.86140228,194.15,194.1,2.5801]
[1735484112056,12.86140228,194.15,194.09,3.42]
[1735484112262,12.86140228,194.18,194.09,3.42]
[1735484112664,12.86140228,194.18,194.14,2.5796]
[1735484113963,15.44050228,194.18,194.13,2.5798]
[1735484114666,2.5797,194.15,194.1,3.42]
[1735484114968,12.86140228,194.14,194.1,3.42]
[1735484115167,12.86140228,194.14,194.09,2.5803]
[1735484115168,12.86140228,194.14,194.09,3.42]
[1735484115467,12.86140228,194.14,194.1,2.5802]
[1735484116066,12.86140228,194.14,194.09,2.5803]
[1735484116260,12.86140228,194.14,194.08,3.42]
[1735484117068,12.86140228,194.11,193.89,61.369]
[1735484117264,12.86140228,194.11,194.03,3.42]
[1735484118464,12.86140228,194.11,194.06,2.5806]
[1735484118864,15.44160228,194.11,194.06,2.5806]
[1735484119470,2.5803,194.1,194.04,2.5809]
[1735484120469,15.44190228,194.08,194.03,2.5811]
[1735484120671,12.86140228,194.08,194.02,3.42]
[1735484121170,12.86140228,194.05,194.0,2.5814]
[1735484121365,12.86140228,194.05,194.0,6.0014]
[1735484121570,3.42,194.12,194.0,3.42]
[1735484121876,12.86140228,194.07,194.0,3.42]
[1735484123276,12.86140228,194.01,193.94,3.42]
[1735484123668,12.86140228,194.01,193.9,1.5217]
[1735484123669,15.44280228,194.01,193.93,2.5824]
[1735484123972,15.44280228,194.01,193.93,3.38]
[1735484124176,12.86140228,193.98,193.93,3.38]
[1735484124374,12.86140228,193.98,193.93,5.9624]
[1735484124676,12.86140228,193.98,193.93,2.5824]
[1735484125071,12.86140228,193.95,193.93,2.5824]
[1735484127177,12.86140228,193.95,193.92,2.5826]
[1735484127377,12.86140228,193.95,193.91,3.38]
[1735484128081,12.86140228,193.95,193.9,2.5828]
[1735484128279,12.86140228,193.92,193.9,2.5828]
[1735484129877,2.8085,194.02,193.87,16.24140228]
[1735484130077,1.2831,194.09,193.9,12.86140228]
[1735484130386,16.34585598,194.04,194.01,2.5814]
[1735484131280,16.34585598,194.04,193.91,4.6662]
[1735484131479,16.34585598,194.04,193.99,2.5815]
[1735484131679,12.86140228,194.01,193.92,3.38]
[1735484132077,12.86140228,194.01,193.97,2.5818]
[1735484133786,15.44280228,194.01,193.95,2.5821]
[1735484134285,12.86140228,193.98,193.91,4.6662]
[1735484134583,12.86140228,193.98,193.93,2.5824]
[1735484135387,12.86140228,193.95,193.92,2.5826]
[1735484135574,12.86140228,193.95,193.9,3.38]
[1735484135981,12.86140228,193.95,193.88,3.38]
[1735484136182,12.86140228,193.95,193.82,4.5132]
[1735484136384,12.86140228,193.95,193.83,3.38]
[1735484136785,12.86140228,193.95,193.84,12.86140228]
[1735484136979,12.86140228,193.98,193.84,12.86140228]
[1735484137187,3.4844537,194.04,193.87,12.86140228]
[1735484137188,12.86140228,194.01,193.87,12.86140228]
[1735484137785,12.86140228,194.01,193.9,12.86140228]
[1735484137984,12.86140228,194.01,193.91,8.0736]
[1735484138189,12.86140228,194.01,193.98,2.5817]
[1735484138888,12.86140228,194.01,194.0,2.5815]
[1735484139081,12.86140228,194.01,193.97,3.38]
[1735484139586,12.86140228,194.01,193.98,2.5817]
[1735484140394,12.86140228,194.01,193.97,3.38]
[1735484140592,12.86140228,194.01,193.99,2.5816]
[1735484143093,12.86140228,194.01,193.97,5.9619]
[1735484143301,12.86140228,194.01,193.97,3.38]
[1735484145207,12.86140228,194.01,193.98,2.5817]
[1735484147600,12.86140228,194.01,193.99,2.5816]
[1735484148601,6.91220214,194.11,193.96,3.38]
[1735484148907,2.5804,194.09,193.96,3.38]
[1735484149299,12.86140228,194.1,193.96,3.38]
[1735484149499,12.86140228,194.04,193.96,3.38]
[1735484150907,12.86140228,194.01,193.96,3.38]
[1735484152503,12.86140228,194.01,193.97,2.5818]
[1735484152703,12.86140228,194.01,193.96,3.38]
[1735484153805,12.86140228,194.01,193.98,2.5817]
[1735484154308,12.86140228,194.01,193.96,3.38]
[1735484154607,12.86140228,194.01,193.99,2.5816]
[1735484155006,12.86140228,194.04,193.96,3.38]
[1735484155208,12.86140228,194.04,194.02,2.5812]
[1735484158306,12.86140228,194.04,194.02,3.36]
[1735484158503,12.86140228,194.07,194.03,2.5811]
[1735484158709,12.86140228,194.07,194.02,3.36]
[1735484158904,12.86140228,194.07,194.05,2.5808]
[1735484159114,12.86140228,194.07,194.02,3.36]
[1735484159510,12.86140228,194.07,194.03,2.5811]
[1735484160408,12.86140228,194.07,194.02,3.36]
[1735484160608,12.86140228,194.07,194.04,2.581]
[1735484164504,12.86140228,194.07,194.02,3.36]
[1735484165013,12.86140228,194.04,193.99,3.36]
[1735484165210,12.86140228,194.04,193.98,3.36]
[1735484165412,2.5813,194.02,193.98,3.36]
[1735484166013,2.5812,194.03,193.98,5.9417]
[1735484166516,15.44290228,194.01,193.98,3.36]
[1735484166712,15.44290228,194.01,193.96,2.582]
[1735484167014,1.2824,194.07,193.93,3.36]
[1735484167015,12.86140228,193.98,193.93,3.36]
[1735484167205,12.86140228,193.98,193.94,2.5823]
[1735484167513,12.86140228,193.98,193.93,3.36]
[1735484168113,2.5819,193.97,193.91,2.5826]
[1735484168507,12.86140228,193.95,193.91,2.5826]
[1735484169611,12.86140228,193.95,193.9,3.36]
[1735484169817,2.5819,193.97,193.92,2.5825]
[1735484170117,12.86140228,194.01,193.9,3.36]
[1735484171517,12.86140228,194.01,193.96,2.5819]
[1735484172516,12.86140228,194.01,193.97,2.5819]
[1735484173225,12.86140228,194.01,193.9,3.36]
[1735484173414,12.86140228,194.01,193.98,2.5818]
[1735484173613,12.86140228,194.01,193.96,3.36]
[1735484173814,12.86140228,194.01,194.0,2.5815]
[1735484174909,30.41350858,194.07,193.96,3.36]
[1735484175111,12.86140228,194.05,193.96,3.36]
[1735484175620,12.86140228,194.05,194.03,2.581]
[1735484175821,6.91220214,194.07,194.02,3.36]
[1735484176215,68.15901946,194.09,194.02,3.36]
[1735484176216,12.86140228,194.09,194.02,3.36]
[1735484176416,12.86140228,194.09,194.04,2.581]
[1735484176618,12.86140228,194.09,194.02,3.36]
[1735484177018,15.44180228,194.09,194.03,2.5811]
[1735484177723,15.44180228,194.09,194.04,2.5809]
[1735484179323,12.86140228,194.09,194.05,2.5809]
[1735484179525,12.86140228,194.09,194.02,3.36]
[1735484180428,12.86140228,194.06,194.02,3.36]
[1735484180618,12.86140228,194.03,193.98,3.36]
[1735484181222,12.86140228,194.03,194.0,2.5815]
[1735484184817,12.86140228,194.03,194.02,2.5813]
[1735484185020,12.86140228,194.03,193.98,3.36]
[1735484185021,12.86140228,194.06,193.98,3.36]
[1735484186520,12.86140228,194.06,194.04,2.5809]
[1735484188734,12.86140228,194.06,194.05,2.5809]
[1735484189128,12.86140228,194.09,194.04,3.34]
[1735484189428,12.86140228,194.09,194.06,2.5806]
[1735484191428,12.86140228,194.09,194.05,2.5808]
[1735484191635,12.86140228,194.09,194.04,3.34]
[1735484193434,15.44180228,194.09,194.04,5.921]
[1735484193935,12.86140228,194.09,194.04,3.34]
[1735484194134,12.86140228,194.06,194.04,3.34]
[1735484194733,12.86140228,194.06,194.03,2.5811]
[1735484195338,12.86140228,194.06,194.02,3.34]
[1735484195540,12.86140228,194.06,194.02,2.5812]
[1735484197134,12.86140228,194.06,194.03,2.5811]
[1735484197938,12.86140228,194.06,194.04,2.581]
[1735484201837,12.86140228,194.06,194.01,3.34]
[1735484201838,12.86140228,194.06,194.02,2.5811]
[1735484202434,12.86140228,194.06,194.03,2.5811]
[1735484204249,8.17844145,194.04,194.03,2.5811]
[1735484206841,27.64880858,194.11,194.01,3.34]
[1735484207042,8.17844145,194.07,194.01,3.34]
[1735484207842,8.17844145,194.07,194.06,2.5807]
[1735484208047,6.91220214,194.12,194.01,3.34]
[1735484208245,8.17844145,194.1,194.02,8.17844145]
[1735484208449,8.17844145,194.1,194.09,2.5802]
[1735484209346,27.64880858,194.13,194.11,2.58]
[1735484210145,8.17844145,194.12,194.11,2.58]
[1735484210345,8.17844145,194.12,194.09,2.5802]
[1735484210548,8.17844145,194.1,194.09,2.5802]
[1735484211546,8.17844145,194.12,194.07,3.34]
[1735484212151,9.49160214,194.16,194.07,3.34]
[1735484212152,6.91220214,194.16,194.13,2.5798]
[1735484212352,8.17844145,194.14,194.13,2.5798]
[1735484212847,8.17844145,194.14,194.07,3.34]
[1735484213051,8.17844145,194.12,194.11,2.5799]
[1735484213252,8.17844145,194.12,194.07,3.34]
[1735484213451,8.17844145,194.1,194.07,3.34]
[1735484213651,8.17844145,194.1,194.09,2.5803]
[1735484214459,93.0784325,194.17,194.07,3.34]
[1735484214753,2.5794,194.16,194.11,2.58]
[1735484216153,2.5794,194.16,194.07,3.34]
[1735484216356,2.5794,194.16,194.12,2.5799]
[1735484216947,102.56993464,194.17,194.13,2.5798]
[1735484217852,95.6577325,194.17,194.13,2.5798]
[1735484219763,8.17844145,194.14,194.05,3.34]
[1735484219955,8.17844145,194.08,194.01,1.4801]
[1735484220155,8.17844145,194.06,194.05,2.5809]
[1735484224152,8.17844145,194.06,194.04,2.581]
[1735484224356,8.17844145,194.06,194.0,3.34]
[1735484224555,8.17844145,194.01,193.96,3.34]
[1735484224859,8.17844145,193.99,193.97,2.5818]
[1735484225255,8.17844145,193.99,193.96,3.34]
[1735484226469,8.17844145,193.99,193.98,2.5818]
[1735484226965,8.17844145,194.03,194.02,2.5813]
[1735484229265,8.17844145,194.03,194.0,2.5814]
[1735484229460,8.17844145,194.0,193.92,9.67424145]
[1735484229658,8.17844145,193.98,193.93,3.34]
[1735484229856,8.17844145,193.98,193.95,2.5821]
[1735484230166,14.87201484,194.09,193.96,3.34]
[1735484230365,8.17844145,194.02,193.96,3.34]
[1735484231069,2.5809,194.05,193.96,3.34]
[1735484231271,8.17844145,194.02,193.96,3.34]
[1735484231566,8.17844145,194.02,193.99,2.5815]
[1735484233567,8.17844145,194.02,193.96,3.34]
[1735484233771,8.17844145,194.02,194.0,2.5815]
[1735484235971,8.17844145,194.02,194.01,2.5814]
[1735484237874,8.17844145,194.02,193.93,1.5984]
[1735484238072,8.17844145,193.95,193.93,1.5984]
[1735484238971,8.17844145,193.97,193.93,1.5984]
[1735484239177,8.17844145,193.99,193.93,1.5984]
[1735484240180,8.17844145,193.99,193.98,2.5817]
[1735484244283,2.5812,194.03,193.98,2.5817]
[1735484244478,8.17844145,193.99,193.98,2.5817]
[1735484252885,8.17844145,193.99,193.97,5.9219]
[1735484253288,8.17844145,193.99,193.97,2.5819]
[1735484253594,8.17844145,193.99,193.95,2.5821]
[1735484253789,8.17844145,193.97,193.93,3.34]
[1735484253989,8.17844145,193.94,193.93,3.34]
[1735484254193,8.17844145,193.96,193.94,2.5823]
[1735484255187,8.17844145,193.96,193.93,3.34]
[1735484255394,8.17844145,193.96,193.95,2.5822]
[1735484256194,8.17844145,193.96,193.88,8.17844145]
[1735484256383,6.91220214,194.03,193.85,4.5499]
[1735484256384,8.17844145,193.94,193.85,4.5499]
[1735484256588,8.17844145,193.94,193.86,3.34]
[1735484256792,8.17844145,193.94,193.86,11.51844145]
[1735484256993,8.17844145,193.94,193.91,2.5826]
[1735484258694,8.17844145,193.94,193.91,5.9226]
[1735484258993,8.17844145,193.92,193.91,5.9226]
[1735484262093,8.17844145,193.94,193.92,2.5826]
[1735484263895,6.91220214,194.01,193.91,3.34]
[1735484264196,8.17844145,193.98,193.92,1.4832]
[1735484264391,8.17844145,193.98,193.97,2.5819]
[1735484264596,8.17844145,193.98,193.92,1.4832]
[1735484265298,8.17844145,193.96,193.95,2.5821]
[1735484265595,2.5816,194.0,193.95,2.5821]
[1735484265794,8.17844145,193.96,193.95,2.5821]
[1735484267298,8.17844145,194.0,193.93,8.17844145]
[1735484267590,6.91220214,194.03,193.97,8.17844145]
[1735484267796,6.91220214,194.03,193.98,3.34]
[1735484268186,6.91220214,194.03,193.99,1.4873]
[1735484268588,8.17844145,194.05,194.02,2.5811]
[1735484269998,8.17844145,194.05,194.03,2.5811]
[1735484271697,8.17844145,194.05,194.02,2.5811]
[1735484271895,8.17844145,194.03,194.02,2.5811]
[1735484272096,8.17844145,194.03,193.99,1.4873]
[1735484272298,8.17844145,194.01,193.94,8.17844145]
[1735484272497,8.17844145,193.99,193.95,3.34]
[1735484272797,8.17844145,193.97,193.92,3.34]
[1735484273099,8.17844145,193.94,193.92,3.34]
[1735484273695,8.17844145,193.94,193.9,3.34]
[1735484274400,8.17844145,193.92,193.9,3.34]
[1735484274996,8.17844145,193.92,193.9,5.9228]
[1735484275296,8.17844145,193.92,193.9,3.34]
[1735484275697,8.17844145,193.94,193.9,3.34]
[1735484275897,8.17844145,193.94,193.91,2.5826]
[1735484277598,2.5817,193.99,193.93,2.5825]
[1735484277803,8.17844145,193.94,193.9,3.34]
[1735484278799,8.17844145,193.94,193.91,2.5826]
[1735484280203,8.17844145,193.97,193.9,11.51844145]
[1735484280806,6.91220214,194.01,193.96,2.5821]
[1735484280999,8.17844145,193.98,193.9,11.51844145]
[1735484282204,8.17844145,193.98,193.97,2.5819]
[1735484282402,8.17844145,193.98,193.96,3.34]
[1735484283508,8.17844145,193.98,193.96,5.922]
[1735484283909,8.17844145,193.98,193.96,3.34]
[1735484285409,8.17844145,193.98,193.97,2.5819]
[1735484287502,27.64880858,194.07,193.97,8.17844145]
[1735484287702,27.64880858,194.07,193.99,8.17844145]
[1735484287904,8.17844145,194.05,193.98,3.0924]
[1735484288704,8.17844145,194.05,193.98,11.27084145]
[1735484289905,2.5802,194.1,194.05,2.5808]
[1735484290111,8.17844145,194.06,194.05,5.9208]
[1735484293606,8.17844145,194.08,194.05,3.34]
[1735484293800,8.17844145,194.08,194.07,2.5806]
[1735484294311,8.17844145,194.1,194.08,2.5804]
[1735484294703,8.17844145,194.1,194.05,3.34]
[1735484295007,8.17844145,194.07,194.06,2.5807]
[1735484296510,8.17844145,194.07,194.0,8.17844145]
[1735484296708,3.48268859,194.12,193.98,3.0924]
[1735484296709,8.17844145,194.05,193.98,3.0924]
[1735484297012,8.17844145,194.03,193.99,3.34]
[1735484297612,8.17844145,194.03,194.01,2.5813]
[1735484298509,8.17844145,194.03,194.02,2.5813]
[1735484298701,8.17844145,194.03,194.01,3.34]
[1735484298906,8.17844145,194.03,193.97,4.3485761]
[1735484299108,3.48268859,194.12,193.98,3.34]
[1735484299310,8.17844145,193.99,193.96,3.34]
[1735484299511,8.17844145,193.97,193.96,3.34]
[1735484300414,8.17844145,193.97,193.88,8.17844145]
[1735484300614,8.17844145,193.93,193.89,3.34]
[1735484300913,8.17844145,193.93,193.9,3.34]
[1735484301914,8.17844145,193.93,193.92,2.5826]
[1735484302317,12.79094551,193.97,193.92,2.5826]
[1735484303310,12.79094551,193.97,193.93,2.5824]
[1735484304621,12.79094551,193.97,193.91,3.34]
[1735484304818,12.79094551,193.97,193.92,2.5826]
[1735484305313,12.79094551,193.94,193.91,3.34]
[1735484305515,12.79094551,193.94,193.86,3.34]
[1735484305816,12.79094551,193.94,193.84,1.4927]
[1735484306014,12.79094551,193.94,193.85,3.34]
[1735484306210,12.79094551,193.94,193.86,3.34]
[1735484306811,12.79094551,193.94,193.87,3.34]
[1735484307514,12.79094551,193.94,193.87,5.9233]
[1735484307905,12.79094551,193.94,193.81,1.5837]
[1735484308106,4.3378,193.99,193.84,3.34]
[1735484308305,12.79094551,193.93,193.84,3.34]
[1735484309713,12.79094551,193.93,193.9,2.5828]
[1735484309915,12.79094551,193.93,193.84,3.34]
[1735484310324,12.79094551,193.93,193.89,2.583]
[1735484310922,12.79094551,193.93,193.9,2.5828]
[1735484311523,12.79094551,193.93,193.92,2.5826]
[1735484311722,12.79094551,193.96,193.92,2.5826]
[1735484313517,12.79094551,193.96,193.93,2.5823]
[1735484314320,12.79094551,193.96,193.9,3.34]
[1735484314518,12.79094551,193.96,193.92,2.5826]
[1735484314917,12.79094551,193.96,193.9,3.34]
[1735484315116,12.79094551,193.93,193.9,3.34]
[1735484315323,12.79094551,193.93,193.86,3.34]
[1735484315522,12.79094551,193.9,193.87,2.5832]
[1735484315829,12.79094551,193.9,193.83,53.66]
[1735484316024,15.37384551,193.9,193.85,2.5835]
[1735484316224,12.79094551,193.87,193.82,3.34]
[1735484317428,12.79094551,193.87,193.83,2.5837]
[1735484317825,12.79094551,193.87,193.83,5.9237]
[1735484318127,12.79094551,193.87,193.84,2.5836]
[1735484320128,12.79094551,193.87,193.83,3.34]
[1735484320327,12.79094551,193.87,193.84,2.5836]
[1735484324234,8.19366981,193.85,193.84,2.5836]